[Event "Titled Tuesday Blitz September 13 Early 2022"]
[White "Ter-Sahakyan, Samvel"]
[Black "assezde36"]
[WhiteFideId "13302531"]
[WhiteElo "2604"]
[BlackElo "2765"]
[Result "1-0"]
[Round "05"]
[TimeControl "180+1"]
[Date "2022.09.13"]
[WhiteClock "0:00:11"]
[BlackClock "0:00:03"]

1. e4 {[%clk 0:02:58]}  d5 {[%clk 0:03:00]} 2. exd5 {[%clk 0:02:57]}  Qxd5 {[%clk 0:03:00]} 3. d4 {[%clk 0:02:57]}  Nf6 {[%clk 0:02:59]} 4. Nc3 {[%clk 0:02:55]}  Qa5 {[%clk 0:02:59]} 5. Nf3 {[%clk 0:02:51]}  Bf5 {[%clk 0:02:57]} 6. Bc4 {[%clk 0:02:48]}  Nbd7 {[%clk 0:02:57]} 7. O-O {[%clk 0:02:45]}  c6 {[%clk 0:02:56]} 8. Re1 {[%clk 0:02:16]}  e6 {[%clk 0:02:56]} 9. Ne2 {[%clk 0:01:58]}  Bd6 {[%clk 0:02:44]} 10. Ng3 {[%clk 0:01:57]}  Bg6 {[%clk 0:02:44]} 11. c3 {[%clk 0:01:44]}  O-O {[%clk 0:02:43]} 12. Nh4 {[%clk 0:01:43]}  Rfe8 {[%clk 0:02:41]} 13. Nxg6 {[%clk 0:01:40]}  hxg6 {[%clk 0:02:42]} 14. Bd2 {[%clk 0:01:36]}  Rad8 {[%clk 0:02:41]} 15. Qc2 {[%clk 0:01:32]}  Qc7 {[%clk 0:02:40]} 16. a4 {[%clk 0:01:28]}  a5 {[%clk 0:02:35]} 17. Rad1 {[%clk 0:01:27]}  Bf4 {[%clk 0:02:35]} 18. Re2 {[%clk 0:01:06]}  Bxd2 {[%clk 0:02:34]} 19. Rexd2 {[%clk 0:01:06]}  Nb6 {[%clk 0:02:34]} 20. Bb3 {[%clk 0:01:05]}  Nbd5 {[%clk 0:02:35]} 21. Ne4 {[%clk 0:00:58]}  Qf4 {[%clk 0:02:25]} 22. Nc5 {[%clk 0:00:54]}  Ng4 {[%clk 0:02:09]} 23. g3 {[%clk 0:00:54]}  Qh6 {[%clk 0:02:03]} 24. h4 {[%clk 0:00:54]}  b6 {[%clk 0:02:01]} 25. Ne4 {[%clk 0:00:52]}  Qh5 {[%clk 0:01:53]} 26. Re1 {[%clk 0:00:48]}  Qf5 {[%clk 0:01:48]} 27. Ng5 {[%clk 0:00:48]}  Ngf6 {[%clk 0:01:39]} 28. Qd1 {[%clk 0:00:46]}  Qg4 {[%clk 0:01:30]} 29. Qxg4 {[%clk 0:00:43]}  Nxg4 {[%clk 0:01:31]} 30. Rde2 {[%clk 0:00:41]}  Ngf6 {[%clk 0:01:27]} 31. Kg2 {[%clk 0:00:40]}  Nh7 {[%clk 0:01:27]} 32. f4 {[%clk 0:00:39]}  Re7 {[%clk 0:01:14]} 33. Kf3 {[%clk 0:00:39]}  Rde8 {[%clk 0:01:08]} 34. Nxh7 {[%clk 0:00:37]}  Kxh7 {[%clk 0:01:08]} 35. Re5 {[%clk 0:00:37]}  Kg8 {[%clk 0:01:04]} 36. g4 {[%clk 0:00:29]}  f6 {[%clk 0:01:02]} 37. R5e2 {[%clk 0:00:28]}  Kf7 {[%clk 0:01:02]} 38. Bc2 {[%clk 0:00:22]}  Rh8 {[%clk 0:01:00]} 39. Rh1 {[%clk 0:00:20]}  b5 {[%clk 0:00:45]} 40. Bb3 {[%clk 0:00:19]}  Rb8 {[%clk 0:00:35]} 41. axb5 {[%clk 0:00:19]}  Rxb5 {[%clk 0:00:28]} 42. Bc4 {[%clk 0:00:19]}  Rb6 {[%clk 0:00:29]} 43. Ra1 {[%clk 0:00:18]}  Ra7 {[%clk 0:00:26]} 44. Rae1 {[%clk 0:00:18]}  Re7 {[%clk 0:00:23]} 45. f5 {[%clk 0:00:18]}  gxf5 {[%clk 0:00:23]} 46. gxf5 {[%clk 0:00:19]}  g6 {[%clk 0:00:13]} 47. Rxe6 {[%clk 0:00:11]}  Rxe6 {[%clk 0:00:08]} 48. Rxe6 {[%clk 0:00:11]}  Kg7 {[%clk 0:00:03]} 49. Bxd5 {[%clk 0:00:11]} 1-0


[Site "https://www.chess.com"]

[Event "Titled Tuesday Blitz September 13 Early 2022"]
[White "Timmermans, Mark"]
[Black "Pranav, V"]
[WhiteFideId "1026399"]
[BlackFideId "25060783"]
[WhiteElo "2460"]
[BlackElo "2390"]
[Result "0-1"]
[Round "05"]
[TimeControl "180+1"]
[Date "2022.09.13"]
[WhiteClock "0:01:43"]
[BlackClock "0:01:43"]

1. Nf3 {[%clk 0:03:00]}  d5 {[%clk 0:02:59]} 2. c4 {[%clk 0:02:56]}  d4 {[%clk 0:02:59]} 3. e3 {[%clk 0:02:54]}  c5 {[%clk 0:02:58]} 4. b4 {[%clk 0:02:54]}  Nc6 {[%clk 0:02:56]} 5. b5 {[%clk 0:02:45]}  Nb8 {[%clk 0:02:56]} 6. exd4 {[%clk 0:02:45]}  cxd4 {[%clk 0:02:56]} 7. d3 {[%clk 0:02:41]}  f6 {[%clk 0:02:56]} 8. Be2 {[%clk 0:02:36]}  e5 {[%clk 0:02:56]} 9. O-O {[%clk 0:02:35]}  Bc5 {[%clk 0:02:44]} 10. Nfd2 {[%clk 0:02:29]}  Ne7 {[%clk 0:02:41]} 11. Nb3 {[%clk 0:02:29]}  Bd6 {[%clk 0:02:35]} 12. a4 {[%clk 0:02:27]}  O-O {[%clk 0:02:34]} 13. c5 {[%clk 0:02:25]}  Bc7 {[%clk 0:02:34]} 14. a5 {[%clk 0:02:26]}  Qe8 {[%clk 0:02:14]} 15. b6 {[%clk 0:02:23]}  Bd8 {[%clk 0:02:09]} 16. Na3 {[%clk 0:02:22]}  Be6 {[%clk 0:02:05]} 17. f4 {[%clk 0:02:16]}  Nd5 {[%clk 0:01:58]} 18. fxe5 {[%clk 0:02:11]}  Nc3 {[%clk 0:01:57]} 19. Qc2 {[%clk 0:02:03]}  Nxe2+ {[%clk 0:01:54]} 20. Qxe2 {[%clk 0:02:04]}  Bxb3 {[%clk 0:01:55]} 21. a6 {[%clk 0:01:52]}  Nxa6 {[%clk 0:01:52]} 22. Qb2 {[%clk 0:01:45]}  Bd5 {[%clk 0:01:48]} 23. Nb5 {[%clk 0:01:43]}  axb6 {[%clk 0:01:43]} 0-1


[Site "https://www.chess.com"]

[Event "Titled Tuesday Blitz September 13 Early 2022"]
[White "Acor, Corey"]
[Black "Bagrationi, Alexander"]
[WhiteFideId "2024861"]
[BlackFideId "14104954"]
[WhiteElo "2340"]
[BlackElo "2398"]
[Result "0-1"]
[Round "06"]
[TimeControl "180+1"]
[Date "2022.09.13"]
[WhiteClock "0:00:02"]
[BlackClock "0:00:10"]

1. e4 {[%clk 0:03:00]}  c5 {[%clk 0:02:55]} 2. Nc3 {[%clk 0:03:00]}  Nc6 {[%clk 0:02:55]} 3. g3 {[%clk 0:03:01]}  g6 {[%clk 0:02:55]} 4. Bg2 {[%clk 0:03:01]}  Bg7 {[%clk 0:02:55]} 5. d3 {[%clk 0:03:02]}  e6 {[%clk 0:02:56]} 6. Be3 {[%clk 0:03:02]}  d6 {[%clk 0:02:56]} 7. Nf3 {[%clk 0:03:00]}  Nge7 {[%clk 0:02:56]} 8. d4 {[%clk 0:03:00]}  cxd4 {[%clk 0:02:54]} 9. Nxd4 {[%clk 0:03:01]}  O-O {[%clk 0:02:47]} 10. O-O {[%clk 0:03:01]}  a6 {[%clk 0:02:46]} 11. h3 {[%clk 0:02:45]}  Qc7 {[%clk 0:02:44]} 12. Qd2 {[%clk 0:02:42]}  Rd8 {[%clk 0:02:38]} 13. Rad1 {[%clk 0:02:29]}  b5 {[%clk 0:02:36]} 14. f4 {[%clk 0:02:26]}  Bb7 {[%clk 0:02:34]} 15. f5 {[%clk 0:02:14]}  Bxd4 {[%clk 0:01:55]} 16. Bxd4 {[%clk 0:02:13]}  Nxd4 {[%clk 0:01:56]} 17. Qxd4 {[%clk 0:02:13]}  Qc5 {[%clk 0:01:56]} 18. fxe6 {[%clk 0:01:58]}  fxe6 {[%clk 0:01:55]} 19. Rf6 {[%clk 0:01:53]}  Nc6 {[%clk 0:01:30]} 20. Qf2 {[%clk 0:01:33]}  Qxf2+ {[%clk 0:01:10]} 21. Kxf2 {[%clk 0:01:34]}  Rf8 {[%clk 0:00:53]} 22. Rxf8+ {[%clk 0:01:28]}  Rxf8+ {[%clk 0:00:49]} 23. Ke3 {[%clk 0:01:15]}  Ne5 {[%clk 0:00:48]} 24. b3 {[%clk 0:01:09]}  Rd8 {[%clk 0:00:42]} 25. a4 {[%clk 0:01:00]}  b4 {[%clk 0:00:35]} 26. Ne2 {[%clk 0:01:00]}  Kf7 {[%clk 0:00:32]} 27. Nf4 {[%clk 0:00:36]}  Ke7 {[%clk 0:00:30]} 28. Bf1 {[%clk 0:00:35]}  a5 {[%clk 0:00:22]} 29. Bd3 {[%clk 0:00:26]}  Rf8 {[%clk 0:00:21]} 30. h4 {[%clk 0:00:23]}  Ng4+ {[%clk 0:00:20]} 31. Ke2 {[%clk 0:00:23]}  e5 {[%clk 0:00:18]} 32. Nh3 {[%clk 0:00:21]}  h6 {[%clk 0:00:16]} 33. Rf1 {[%clk 0:00:19]}  Rxf1 {[%clk 0:00:16]} 34. Kxf1 {[%clk 0:00:20]}  Nf6 {[%clk 0:00:11]} 35. Nf2 {[%clk 0:00:20]}  g5 {[%clk 0:00:11]} 36. hxg5 {[%clk 0:00:18]}  hxg5 {[%clk 0:00:12]} 37. Ke2 {[%clk 0:00:18]}  Bc8 {[%clk 0:00:10]} 38. Kf3 {[%clk 0:00:18]}  Be6 {[%clk 0:00:10]} 39. Be2 {[%clk 0:00:15]}  g4+ {[%clk 0:00:09]} 40. Ke3 {[%clk 0:00:15]}  Kf7 {[%clk 0:00:09]} 41. Nd3 {[%clk 0:00:11]}  Kg6 {[%clk 0:00:09]} 42. Nb2 {[%clk 0:00:10]}  Kg5 {[%clk 0:00:08]} 43. Bc4 {[%clk 0:00:10]}  Bd7 {[%clk 0:00:08]} 44. Bb5 {[%clk 0:00:08]}  Be6 {[%clk 0:00:08]} 45. Bc4 {[%clk 0:00:08]}  Bd7 {[%clk 0:00:08]} 46. Bf7 {[%clk 0:00:09]}  Bc6 {[%clk 0:00:07]} 47. Nc4 {[%clk 0:00:08]}  Nxe4 {[%clk 0:00:06]} 48. Nxa5 {[%clk 0:00:09]}  Ba8 {[%clk 0:00:06]} 49. Be8 {[%clk 0:00:08]}  Nxg3 {[%clk 0:00:07]} 50. Bc6 {[%clk 0:00:09]}  Nf5+ {[%clk 0:00:07]} 51. Kf2 {[%clk 0:00:08]}  Bxc6 {[%clk 0:00:07]} 52. Nxc6 {[%clk 0:00:09]}  Kf4 {[%clk 0:00:08]} 53. a5 {[%clk 0:00:09]}  e4 {[%clk 0:00:08]} 54. a6 {[%clk 0:00:10]}  e3+ {[%clk 0:00:09]} 55. Kg2 {[%clk 0:00:07]}  Nh4+ {[%clk 0:00:09]} 56. Kf1 {[%clk 0:00:06]}  g3 {[%clk 0:00:09]} 57. Nd4 {[%clk 0:00:04]}  g2+ {[%clk 0:00:08]} 58. Kg1 {[%clk 0:00:03]}  Ke4 {[%clk 0:00:08]} 59. a7 {[%clk 0:00:02]}  Kxd4 {[%clk 0:00:09]} 60. a8=Q {[%clk 0:00:02]}  e2 {[%clk 0:00:09]} 61. Qe8 {[%clk 0:00:01]}  e1=Q+ {[%clk 0:00:08]} 62. Qxe1 {[%clk 0:00:01]}  Nf3+ {[%clk 0:00:09]} 63. Kxg2 {[%clk 0:00:01]}  Nxe1+ {[%clk 0:00:09]} 64. Kf1 {[%clk 0:00:02]}  Nxc2 {[%clk 0:00:10]} 0-1


[Site "https://www.chess.com"]

[Event "Titled Tuesday Blitz September 13 Early 2022"]
[White "Al-Tarboush, Ward"]
[Black "Molina, Roberto Junio Brito"]
[WhiteFideId "7601450"]
[BlackFideId "2109450"]
[WhiteElo "2234"]
[BlackElo "2403"]
[Result "1-0"]
[Round "06"]
[TimeControl "180+1"]
[Date "2022.09.13"]
[WhiteClock "0:00:20"]
[BlackClock "0:00:14"]

1. e4 {[%clk 0:03:00]}  c6 {[%clk 0:03:00]} 2. Nf3 {[%clk 0:03:00]}  d5 {[%clk 0:03:01]} 3. Nc3 {[%clk 0:03:00]}  dxe4 {[%clk 0:03:02]} 4. Nxe4 {[%clk 0:03:01]}  Bg4 {[%clk 0:03:02]} 5. h3 {[%clk 0:02:51]}  Bxf3 {[%clk 0:03:01]} 6. Qxf3 {[%clk 0:02:51]}  Nd7 {[%clk 0:03:01]} 7. d4 {[%clk 0:02:49]}  Ndf6 {[%clk 0:03:00]} 8. Be3 {[%clk 0:02:48]}  Nxe4 {[%clk 0:03:00]} 9. Qxe4 {[%clk 0:02:49]}  Nf6 {[%clk 0:03:01]} 10. Qh4 {[%clk 0:02:49]}  Qd5 {[%clk 0:03:02]} 11. Qg5 {[%clk 0:02:46]}  e6 {[%clk 0:02:48]} 12. Qxd5 {[%clk 0:02:45]}  Nxd5 {[%clk 0:02:48]} 13. Bd2 {[%clk 0:02:44]}  g6 {[%clk 0:02:46]} 14. Bd3 {[%clk 0:02:44]}  h5 {[%clk 0:02:45]} 15. c3 {[%clk 0:02:44]}  Bh6 {[%clk 0:02:44]} 16. Bxh6 {[%clk 0:02:44]}  Rxh6 {[%clk 0:02:45]} 17. O-O {[%clk 0:02:43]}  O-O-O {[%clk 0:02:45]} 18. a4 {[%clk 0:02:44]}  Rhh8 {[%clk 0:02:43]} 19. Rfc1 {[%clk 0:02:42]}  Kb8 {[%clk 0:02:42]} 20. b4 {[%clk 0:02:43]}  Rd7 {[%clk 0:02:40]} 21. Rab1 {[%clk 0:02:43]}  Rc8 {[%clk 0:02:40]} 22. Rb3 {[%clk 0:02:36]}  Re7 {[%clk 0:02:27]} 23. Bf1 {[%clk 0:02:28]}  e5 {[%clk 0:02:20]} 24. Re1 {[%clk 0:02:25]}  Rce8 {[%clk 0:02:20]} 25. c4 {[%clk 0:02:23]}  Nc7 {[%clk 0:02:14]} 26. Rbe3 {[%clk 0:02:23]}  f6 {[%clk 0:01:57]} 27. h4 {[%clk 0:02:23]}  Kc8 {[%clk 0:01:55]} 28. dxe5 {[%clk 0:02:23]}  fxe5 {[%clk 0:01:54]} 29. Bd3 {[%clk 0:02:23]}  Re6 {[%clk 0:01:54]} 30. f4 {[%clk 0:02:20]}  exf4 {[%clk 0:01:51]} 31. Rxe6 {[%clk 0:02:20]}  Rxe6 {[%clk 0:01:52]} 32. Rxe6 {[%clk 0:02:20]}  Nxe6 {[%clk 0:01:53]} 33. Bxg6 {[%clk 0:02:20]}  c5 {[%clk 0:01:46]} 34. b5 {[%clk 0:02:09]}  Kd7 {[%clk 0:01:43]} 35. Bxh5 {[%clk 0:02:08]}  Ke7 {[%clk 0:01:43]} 36. a5 {[%clk 0:02:04]}  b6 {[%clk 0:01:43]} 37. axb6 {[%clk 0:02:02]}  axb6 {[%clk 0:01:44]} 38. Bf3 {[%clk 0:01:55]}  Nd4 {[%clk 0:01:42]} 39. Bd5 {[%clk 0:01:55]}  Kf6 {[%clk 0:01:43]} 40. Kf2 {[%clk 0:01:55]}  Kf5 {[%clk 0:01:38]} 41. g3 {[%clk 0:01:52]}  Kg4 {[%clk 0:01:37]} 42. gxf4 {[%clk 0:01:51]}  Kxf4 {[%clk 0:01:33]} 43. h5 {[%clk 0:01:50]}  Kg5 {[%clk 0:01:32]} 44. Bf7 {[%clk 0:01:50]}  Nf5 {[%clk 0:01:32]} 45. Kf3 {[%clk 0:01:48]}  Nd6 {[%clk 0:01:32]} 46. Bd5 {[%clk 0:01:45]}  Ne8 {[%clk 0:00:55]} 47. Ke4 {[%clk 0:01:37]}  Kf6 {[%clk 0:00:47]} 48. Bc6 {[%clk 0:01:33]}  Nd6+ {[%clk 0:00:44]} 49. Kd5 {[%clk 0:01:33]}  Nf5 {[%clk 0:00:42]} 50. Ke4 {[%clk 0:01:13]}  Nd6+ {[%clk 0:00:42]} 51. Kd3 {[%clk 0:01:09]}  Kg5 {[%clk 0:00:39]} 52. Bf3 {[%clk 0:01:09]}  Kf4 {[%clk 0:00:40]} 53. Bd1 {[%clk 0:01:08]}  Kg5 {[%clk 0:00:40]} 54. Bf3 {[%clk 0:01:05]}  Kf4 {[%clk 0:00:40]} 55. Be2 {[%clk 0:01:06]}  Nf5 {[%clk 0:00:39]} 56. Bf1 {[%clk 0:01:00]}  Kg5 {[%clk 0:00:36]} 57. Be2 {[%clk 0:00:41]}  Kf4 {[%clk 0:00:36]} 58. Kd2 {[%clk 0:00:38]}  Kg5 {[%clk 0:00:30]} 59. Kc3 {[%clk 0:00:38]}  Ng3 {[%clk 0:00:28]} 60. Bf3 {[%clk 0:00:32]}  Kf4 {[%clk 0:00:23]} 61. h6 {[%clk 0:00:26]}  Kxf3 {[%clk 0:00:23]} 62. h7 {[%clk 0:00:26]}  Ne4+ {[%clk 0:00:18]} 63. Kb2 {[%clk 0:00:25]}  Nd2 {[%clk 0:00:17]} 64. h8=Q {[%clk 0:00:23]}  Nxc4+ {[%clk 0:00:17]} 65. Kc3 {[%clk 0:00:23]}  Ne3 {[%clk 0:00:14]} 66. Qf6+ {[%clk 0:00:21]}  Ke4 {[%clk 0:00:14]} 67. Qe6+ {[%clk 0:00:21]}  Kf4 {[%clk 0:00:15]} 68. Kd3 {[%clk 0:00:21]}  Nf5 {[%clk 0:00:14]} 69. Qxb6 {[%clk 0:00:20]} 1-0


[Site "https://www.chess.com"]

[Event "Titled Tuesday Blitz September 13 Early 2022"]
[White "Bacrot, Etienne"]
[Black "Andreikin, Dmitry"]
[WhiteFideId "605506"]
[BlackFideId "4158814"]
[WhiteElo "2666"]
[BlackElo "2736"]
[Result "1-0"]
[Round "06"]
[TimeControl "180+1"]
[Date "2022.09.13"]
[WhiteClock "0:00:09"]
[BlackClock "0:00:13"]

1. e4 {[%clk 0:03:00]}  c5 {[%clk 0:03:00]} 2. Nf3 {[%clk 0:03:01]}  e6 {[%clk 0:03:00]} 3. d4 {[%clk 0:03:01]}  cxd4 {[%clk 0:03:00]} 4. Nxd4 {[%clk 0:03:02]}  Nc6 {[%clk 0:03:00]} 5. Nc3 {[%clk 0:03:02]}  a6 {[%clk 0:02:59]} 6. Bf4 {[%clk 0:03:00]}  d6 {[%clk 0:02:57]} 7. Nxc6 {[%clk 0:02:59]}  bxc6 {[%clk 0:02:56]} 8. Bd3 {[%clk 0:03:00]}  e5 {[%clk 0:02:55]} 9. Be3 {[%clk 0:02:59]}  Nf6 {[%clk 0:02:54]} 10. O-O {[%clk 0:02:59]}  Ng4 {[%clk 0:02:51]} 11. Bc1 {[%clk 0:02:59]}  Qh4 {[%clk 0:02:42]} 12. h3 {[%clk 0:02:59]}  Nf6 {[%clk 0:02:41]} 13. f4 {[%clk 0:02:59]}  Bxh3 {[%clk 0:02:24]} 14. gxh3 {[%clk 0:02:48]}  Qg3+ {[%clk 0:02:24]} 15. Kh1 {[%clk 0:02:48]}  Qxh3+ {[%clk 0:02:24]} 16. Kg1 {[%clk 0:02:48]}  d5 {[%clk 0:02:22]} 17. Na4 {[%clk 0:02:32]}  Qg3+ {[%clk 0:02:18]} 18. Kh1 {[%clk 0:02:32]}  Qh3+ {[%clk 0:02:19]} 19. Kg1 {[%clk 0:02:32]}  dxe4 {[%clk 0:02:19]} 20. Bc4 {[%clk 0:02:30]}  Qg3+ {[%clk 0:01:59]} 21. Kh1 {[%clk 0:02:30]}  Qh3+ {[%clk 0:01:51]} 22. Kg1 {[%clk 0:02:30]}  Rd8 {[%clk 0:01:37]} 23. Qe2 {[%clk 0:02:29]}  Rd4 {[%clk 0:01:37]} 24. b3 {[%clk 0:02:12]}  e3 {[%clk 0:01:25]} 25. Qg2 {[%clk 0:01:21]}  Qxg2+ {[%clk 0:01:20]} 26. Kxg2 {[%clk 0:01:21]}  exf4 {[%clk 0:01:20]} 27. Bb2 {[%clk 0:01:21]}  Rd2+ {[%clk 0:01:11]} 28. Kf3 {[%clk 0:01:21]}  Bd6 {[%clk 0:01:05]} 29. Bxf6 {[%clk 0:01:09]}  gxf6 {[%clk 0:01:04]} 30. Rad1 {[%clk 0:01:09]}  Rxd1 {[%clk 0:00:53]} 31. Rxd1 {[%clk 0:01:09]}  Be5 {[%clk 0:00:47]} 32. Rg1 {[%clk 0:00:45]}  h5 {[%clk 0:00:47]} 33. Nc5 {[%clk 0:00:45]}  h4 {[%clk 0:00:47]} 34. Nd3 {[%clk 0:00:42]}  h3 {[%clk 0:00:46]} 35. Nxf4 {[%clk 0:00:42]}  h2 {[%clk 0:00:44]} 36. Rh1 {[%clk 0:00:42]}  Rh4 {[%clk 0:00:36]} 37. Ne2 {[%clk 0:00:19]}  Rh3+ {[%clk 0:00:28]} 38. Kg4 {[%clk 0:00:18]}  Rh6 {[%clk 0:00:26]} 39. Bxa6 {[%clk 0:00:17]}  Ke7 {[%clk 0:00:26]} 40. Bd3 {[%clk 0:00:15]}  Kd6 {[%clk 0:00:25]} 41. Be4 {[%clk 0:00:15]}  Kc5 {[%clk 0:00:23]} 42. c3 {[%clk 0:00:14]}  Rh8 {[%clk 0:00:22]} 43. Kf3 {[%clk 0:00:14]}  Rh3+ {[%clk 0:00:21]} 44. Kg2 {[%clk 0:00:14]}  Rh4 {[%clk 0:00:20]} 45. Bf3 {[%clk 0:00:12]}  Rh8 {[%clk 0:00:19]} 46. Rd1 {[%clk 0:00:11]}  Rg8+ {[%clk 0:00:15]} 47. Kh1 {[%clk 0:00:11]}  Rg5 {[%clk 0:00:16]} 48. a4 {[%clk 0:00:10]}  Rf5 {[%clk 0:00:16]} 49. Rf1 {[%clk 0:00:10]}  Bxc3 {[%clk 0:00:15]} 50. Nxc3 {[%clk 0:00:10]}  Kb4 {[%clk 0:00:15]} 51. Ne2 {[%clk 0:00:09]}  c5 {[%clk 0:00:16]} 52. Kxh2 {[%clk 0:00:09]}  Kxb3 {[%clk 0:00:15]} 53. a5 {[%clk 0:00:09]}  c4 {[%clk 0:00:14]} 54. Nd4+ {[%clk 0:00:09]}  Kb2 {[%clk 0:00:13]} 55. Nxf5 {[%clk 0:00:09]} 1-0


[Site "https://www.chess.com"]

[Event "Titled Tuesday Blitz September 13 Early 2022"]
[White "Beerdsen, Thomas"]
[Black "Bluebaum, Matthias"]
[WhiteFideId "1030108"]
[BlackFideId "24651516"]
[WhiteElo "2567"]
[BlackElo "2633"]
[Result "0-1"]
[Round "06"]
[TimeControl "180+1"]
[Date "2022.09.13"]
[WhiteClock "0:00:02"]
[BlackClock "0:00:10"]

1. e4 {[%clk 0:03:00]}  c6 {[%clk 0:03:00]} 2. d4 {[%clk 0:02:58]}  d5 {[%clk 0:03:00]} 3. f3 {[%clk 0:02:59]}  e6 {[%clk 0:03:01]} 4. Nc3 {[%clk 0:02:59]}  Qb6 {[%clk 0:03:00]} 5. a3 {[%clk 0:02:58]}  Nd7 {[%clk 0:03:01]} 6. Be3 {[%clk 0:02:58]}  Be7 {[%clk 0:03:01]} 7. Bd3 {[%clk 0:02:58]}  Ngf6 {[%clk 0:03:02]} 8. Nge2 {[%clk 0:02:59]}  dxe4 {[%clk 0:02:59]} 9. Nxe4 {[%clk 0:02:57]}  Qxb2 {[%clk 0:02:39]} 10. O-O {[%clk 0:02:50]}  Qb6 {[%clk 0:02:37]} 11. Kh1 {[%clk 0:02:46]}  O-O {[%clk 0:02:36]} 12. c4 {[%clk 0:02:40]}  e5 {[%clk 0:02:26]} 13. Rb1 {[%clk 0:02:16]}  Qc7 {[%clk 0:02:25]} 14. Qe1 {[%clk 0:02:06]}  exd4 {[%clk 0:02:06]} 15. Bxd4 {[%clk 0:02:06]}  Nxe4 {[%clk 0:02:03]} 16. Bxe4 {[%clk 0:02:03]}  Bf6 {[%clk 0:02:00]} 17. Bc2 {[%clk 0:01:33]}  Re8 {[%clk 0:01:42]} 18. Qf2 {[%clk 0:01:20]}  Bxd4 {[%clk 0:01:29]} 19. Nxd4 {[%clk 0:01:21]}  Nf6 {[%clk 0:01:26]} 20. Qh4 {[%clk 0:01:15]}  Bd7 {[%clk 0:01:22]} 21. c5 {[%clk 0:00:58]}  Rad8 {[%clk 0:01:14]} 22. Rbd1 {[%clk 0:00:51]}  b6 {[%clk 0:01:12]} 23. Nb3 {[%clk 0:00:46]}  Be6 {[%clk 0:01:09]} 24. Rxd8 {[%clk 0:00:42]}  Rxd8 {[%clk 0:01:08]} 25. Nd4 {[%clk 0:00:41]}  Bc8 {[%clk 0:00:54]} 26. Ba4 {[%clk 0:00:30]}  Bd7 {[%clk 0:00:48]} 27. cxb6 {[%clk 0:00:20]}  axb6 {[%clk 0:00:49]} 28. Bc2 {[%clk 0:00:15]}  c5 {[%clk 0:00:47]} 29. Ne2 {[%clk 0:00:16]}  Bb5 {[%clk 0:00:44]} 30. Re1 {[%clk 0:00:09]}  Bxe2 {[%clk 0:00:42]} 31. Rxe2 {[%clk 0:00:09]}  h6 {[%clk 0:00:41]} 32. h3 {[%clk 0:00:05]}  b5 {[%clk 0:00:38]} 33. Qe1 {[%clk 0:00:05]}  Qd6 {[%clk 0:00:30]} 34. Qc3 {[%clk 0:00:06]}  Nh5 {[%clk 0:00:30]} 35. Kg1 {[%clk 0:00:05]}  Nf4 {[%clk 0:00:29]} 36. Re1 {[%clk 0:00:05]}  g6 {[%clk 0:00:23]} 37. Kh1 {[%clk 0:00:05]}  Qd4 {[%clk 0:00:21]} 38. Qa5 {[%clk 0:00:05]}  Qd2 {[%clk 0:00:13]} 39. Qxd2 {[%clk 0:00:02]}  Rxd2 {[%clk 0:00:14]} 40. Be4 {[%clk 0:00:03]}  c4 {[%clk 0:00:12]} 41. Rb1 {[%clk 0:00:03]}  c3 {[%clk 0:00:10]} 42. g3 {[%clk 0:00:02]}  Ne2 {[%clk 0:00:10]} 43. Rxb5 {[%clk 0:00:02]}  Nxg3+ {[%clk 0:00:10]} 0-1


[Site "https://www.chess.com"]

[Event "Titled Tuesday Blitz September 13 Early 2022"]
[White "Belov, Vladimir"]
[Black "Lopez, Henry"]
[WhiteFideId "4132394"]
[BlackFideId "5203830"]
[WhiteElo "2501"]
[BlackElo "2177"]
[Result "1-0"]
[Round "06"]
[TimeControl "180+1"]
[Date "2022.09.13"]
[WhiteClock "0:00:09"]
[BlackClock "0:00:09"]

1. e4 {[%clk 0:03:00]}  c5 {[%clk 0:02:58]} 2. Nf3 {[%clk 0:02:59]}  d6 {[%clk 0:02:58]} 3. c3 {[%clk 0:02:58]}  Nf6 {[%clk 0:02:57]} 4. Be2 {[%clk 0:02:56]}  g6 {[%clk 0:02:56]} 5. O-O {[%clk 0:02:56]}  Bg7 {[%clk 0:02:56]} 6. Bb5+ {[%clk 0:02:54]}  Nfd7 {[%clk 0:02:51]} 7. d4 {[%clk 0:02:46]}  a6 {[%clk 0:02:50]} 8. Bd3 {[%clk 0:02:40]}  O-O {[%clk 0:02:50]} 9. d5 {[%clk 0:02:35]}  b5 {[%clk 0:02:48]} 10. a4 {[%clk 0:02:30]}  b4 {[%clk 0:02:36]} 11. a5 {[%clk 0:02:24]}  Nf6 {[%clk 0:02:24]} 12. h3 {[%clk 0:01:55]}  bxc3 {[%clk 0:02:12]} 13. Nxc3 {[%clk 0:01:54]}  e5 {[%clk 0:02:13]} 14. Nd2 {[%clk 0:01:49]}  Nh5 {[%clk 0:02:06]} 15. Nc4 {[%clk 0:01:45]}  Nf4 {[%clk 0:02:06]} 16. Re1 {[%clk 0:01:41]}  Nxd3 {[%clk 0:01:56]} 17. Qxd3 {[%clk 0:01:40]}  f5 {[%clk 0:01:57]} 18. Bd2 {[%clk 0:01:18]}  Ra7 {[%clk 0:01:51]} 19. Nb6 {[%clk 0:01:13]}  Raf7 {[%clk 0:01:44]} 20. f3 {[%clk 0:01:10]}  Nd7 {[%clk 0:01:40]} 21. Nxc8 {[%clk 0:01:09]}  Qxc8 {[%clk 0:01:40]} 22. Rac1 {[%clk 0:01:02]}  Qb7 {[%clk 0:01:39]} 23. b3 {[%clk 0:00:51]}  h5 {[%clk 0:01:32]} 24. Bg5 {[%clk 0:00:48]}  f4 {[%clk 0:01:27]} 25. Na4 {[%clk 0:00:40]}  Bf6 {[%clk 0:01:24]} 26. Bxf6 {[%clk 0:00:38]}  Rxf6 {[%clk 0:01:23]} 27. Nb2 {[%clk 0:00:37]}  Rb8 {[%clk 0:01:20]} 28. Nc4 {[%clk 0:00:34]}  Qxb3 {[%clk 0:01:14]} 29. Qxb3 {[%clk 0:00:34]}  Rxb3 {[%clk 0:01:13]} 30. Rb1 {[%clk 0:00:35]}  Rb5 {[%clk 0:00:44]} 31. h4 {[%clk 0:00:31]}  Kg7 {[%clk 0:00:38]} 32. Kf2 {[%clk 0:00:30]}  Kf7 {[%clk 0:00:34]} 33. Rxb5 {[%clk 0:00:20]}  axb5 {[%clk 0:00:34]} 34. Na3 {[%clk 0:00:21]}  b4 {[%clk 0:00:29]} 35. Nc4 {[%clk 0:00:21]}  Ke7 {[%clk 0:00:29]} 36. a6 {[%clk 0:00:21]}  Rf8 {[%clk 0:00:29]} 37. a7 {[%clk 0:00:20]}  Ra8 {[%clk 0:00:30]} 38. Ra1 {[%clk 0:00:21]}  Kd8 {[%clk 0:00:19]} 39. Nxd6 {[%clk 0:00:19]}  Kc7 {[%clk 0:00:19]} 40. Ra6 {[%clk 0:00:12]}  Nb6 {[%clk 0:00:18]} 41. Nb5+ {[%clk 0:00:08]}  Kb7 {[%clk 0:00:17]} 42. Ra1 {[%clk 0:00:08]}  c4 {[%clk 0:00:14]} 43. Ke2 {[%clk 0:00:08]}  c3 {[%clk 0:00:12]} 44. Kd3 {[%clk 0:00:08]}  Rc8 {[%clk 0:00:09]} 45. Nd6+ {[%clk 0:00:09]} 1-0


[Site "https://www.chess.com"]